bitfinex-derivatives/quotes_BTCF0:USTF0_20250903
["timestamp","ask_amount","ask_price","bid_price","bid_amount"]
[1756871484034,0.0021,111120.0,111110.0,1.62300814]
[1756871484727,0.0021,111120.0,111110.0,1.69602395]
[1756871486227,0.0021,111120.0,111110.0,2.03601765]
[1756871486733,0.02428,111140.0,111130.0,0.04737]
[1756871486933,0.08343,111150.0,111140.0,0.08201]
[1756871487133,0.08333,111150.0,111140.0,0.43225572]
[1756871487336,0.035,111160.0,111140.0,0.70761572]
[1756871487540,0.10789483,111160.0,111150.0,1.26776572]
[1756871487836,0.35779483,111160.0,111150.0,0.91752]
[1756871488032,0.10779483,111160.0,111150.0,0.91752]
[1756871488927,0.10779483,111160.0,111150.0,0.92659036]
[1756871489129,0.11279483,111160.0,111150.0,0.94659036]
[1756871489638,0.09133,111160.0,111150.0,0.91744]
[1756871489833,0.09133,111160.0,111150.0,0.47592]
[1756871490039,0.69157572,111160.0,111150.0,1.06817]
[1756871490233,0.71584027,111160.0,111150.0,0.08201]
[1756871490433,0.71584027,111160.0,111150.0,0.90701]
[1756871490639,0.71584027,111160.0,111150.0,1.03701]
[1756871491046,0.36559455,111160.0,111150.0,1.03701]
[1756871491338,0.36559455,111160.0,111150.0,1.05092]
[1756871491638,0.09133,111160.0,111150.0,1.40116572]
[1756871491940,0.05643,111160.0,111150.0,1.40116572]
[1756871492144,0.008,111160.0,111150.0,1.40116572]
[1756871494635,0.008,111160.0,111150.0,1.65116572]
[1756871494836,0.003,111160.0,111150.0,1.66913074]
[1756871495036,0.0001,111170.0,111150.0,1.66913074]
[1756871495236,0.0001,111170.0,111160.0,0.43225572]
[1756871495438,0.04853,111180.0,111170.0,0.08201]
[1756871495645,0.08333,111180.0,111170.0,1.65157858]
[1756871495832,0.33333,111180.0,111170.0,0.83021858]
[1756871496031,0.33333,111180.0,111170.0,0.92129286]
[1756871496237,0.68357572,111180.0,111170.0,0.99490247]
[1756871496438,0.33333,111180.0,111170.0,1.32490247]
[1756871497042,0.33433,111180.0,111170.0,1.32490247]
[1756871497242,0.33433,111180.0,111170.0,0.17358247]
[1756871497436,0.33433,111180.0,111170.0,1.20486247]
[1756871497742,0.68557572,111180.0,111170.0,1.20486247]
[1756871498343,0.68557572,111180.0,111170.0,0.06533286]
[1756871498533,0.70976727,111180.0,111170.0,0.13164]
[1756871498740,0.70976727,111180.0,111170.0,0.01]
[1756871500031,0.70976727,111180.0,111170.0,0.03378]
[1756871500850,0.70976727,111180.0,111170.0,0.05647]
[1756871501240,0.70976727,111180.0,111170.0,0.03378]
[1756871502946,0.70976727,111180.0,111170.0,0.05647]
[1756871503444,0.35952155,111180.0,111170.0,0.09334]
[1756871503638,0.70976727,111180.0,111170.0,0.09334]
[1756871504339,0.70976727,111180.0,111170.0,0.30334]
[1756871506344,0.70976727,111180.0,111170.0,0.09334]
[1756871506549,0.70986727,111180.0,111170.0,0.03378]
[1756871507250,0.70986727,111180.0,111170.0,0.01]
[1756871507446,0.88425941,111180.0,111170.0,0.05877]
[1756871507642,0.35962155,111180.0,111170.0,0.05877]
[1756871507948,0.88425941,111180.0,111170.0,0.05877]
[1756871508637,0.88425941,111180.0,111170.0,0.03378]
[1756871508839,0.35962155,111180.0,111170.0,0.05877]
[1756871509045,0.88425941,111180.0,111170.0,0.03378]
[1756871509248,0.88425941,111180.0,111170.0,0.05877]
[1756871509440,0.35962155,111180.0,111170.0,0.09564]
[1756871509751,0.88425941,111180.0,111170.0,0.09564]
[1756871510049,0.88425941,111180.0,111170.0,0.03378]
[1756871510250,0.88425941,111180.0,111170.0,0.05877]
[1756871511146,0.93258446,111180.0,111170.0,0.09564]
[1756871511357,0.88425941,111180.0,111170.0,0.09564]
[1756871512148,0.88425941,111180.0,111170.0,0.08564]
[1756871512351,0.93258446,111180.0,111170.0,0.37564]
[1756871512642,0.93258446,111180.0,111170.0,0.33877]
[1756871514352,0.93258446,111180.0,111170.0,0.37564]
[1756871514947,0.93258446,111180.0,111170.0,0.06877]
[1756871515156,0.93258446,111180.0,111170.0,0.35877]
[1756871515942,0.68258446,111180.0,111170.0,0.31]
[1756871516147,0.68258446,111180.0,111170.0,0.09]
[1756871516148,0.88425941,111180.0,111170.0,0.09]
[1756871516747,1.76977673,111180.0,111170.0,0.09]
[1756871516945,1.24513887,111180.0,111170.0,0.09]
[1756871517254,1.76977673,111180.0,111170.0,0.09]
[1756871517650,1.24513887,111180.0,111170.0,0.09]
[1756871517852,1.76977673,111180.0,111170.0,0.09]
[1756871519156,1.51977673,111180.0,111170.0,0.09]
[1756871519448,1.19298048,111180.0,111170.0,0.09]
[1756871519656,0.63425941,111180.0,111170.0,0.09]
[1756871519955,1.51973673,111180.0,111170.0,0.09]
[1756871520457,2.03205566,111180.0,111170.0,0.01695]
[1756871520755,2.03205566,111180.0,111160.0,0.0001]
[1756871520951,0.57290531,111170.0,111160.0,0.04887]
[1756871521152,0.59719686,111170.0,111160.0,0.04877]
[1756871521455,0.33487793,111170.0,111160.0,0.04877]
[1756871522557,0.28661048,111170.0,111160.0,0.04877]
[1756871522959,0.02429155,111170.0,111160.0,0.08564]
[1756871523155,0.26241893,111170.0,111160.0,0.08564]
[1756871523366,0.33487486,111170.0,111160.0,0.08564]
[1756871525460,0.59719379,111170.0,111160.0,0.08564]
[1756871528362,0.59719379,111170.0,111160.0,0.04877]
[1756871528559,0.59719379,111170.0,111160.0,0.08335]
[1756871528954,0.59719379,111170.0,111160.0,0.04877]
[1756871529469,0.59719379,111170.0,111160.0,0.08335]
[1756871529857,0.59719379,111170.0,111160.0,0.04877]
[1756871532264,0.59719379,111170.0,111160.0,0.08335]
[1756871532962,0.59719379,111170.0,111160.0,0.04877]
[1756871536268,0.59819379,111170.0,111160.0,0.04877]
[1756871536474,0.59919379,111170.0,111160.0,0.04877]
[1756871537167,0.55092941,111170.0,111150.0,0.11254502]
[1756871537366,0.52463786,111160.0,111150.0,0.11254502]
[1756871537566,0.54892941,111160.0,111150.0,0.11244502]
[1756871538973,1.36984941,111160.0,111150.0,0.0371]
[1756871540071,1.36984941,111160.0,111150.0,0.0599]
[1756871540272,1.37883099,111160.0,111150.0,0.0599]
[1756871540869,1.37883099,111160.0,111150.0,0.01383]
[1756871541372,0.54892941,111160.0,111150.0,0.09448]
[1756871541576,1.36984941,111160.0,111150.0,0.09448]
[1756871545176,1.36984941,111160.0,111150.0,0.0599]
[1756871545578,1.37896099,111160.0,111150.0,0.0599]
[1756871546277,1.36984941,111160.0,111150.0,0.09448]
[1756871546578,1.36984941,111160.0,111150.0,0.0599]
[1756871546983,1.36984941,111160.0,111150.0,0.09448]
[1756871547668,1.36984941,111160.0,111150.0,0.0599]
[1756871548380,1.37899413,111160.0,111150.0,0.0599]
[1756871548766,1.37899413,111160.0,111150.0,0.09448]
[1756871549478,1.37899413,111160.0,111150.0,0.0599]
[1756871550482,1.36984941,111160.0,111150.0,0.0599]
[1756871550882,0.54892941,111160.0,111150.0,0.09448]
[1756871551082,1.36980941,111160.0,111150.0,0.09448]
[1756871551583,0.54892941,111160.0,111150.0,0.09448]
[1756871551777,1.36980941,111160.0,111150.0,0.09448]
[1756871555982,1.36980941,111160.0,111150.0,0.0599]
[1756871561782,1.36980941,111160.0,111140.0,0.02435]
[1756871561974,0.52463786,111150.0,111140.0,0.02435]
[1756871562178,0.54892941,111150.0,111140.0,0.04871]
[1756871562784,0.54892941,111150.0,111140.0,0.08256]
[1756871562986,0.54892941,111150.0,111140.0,0.08356]
[1756871563382,0.28661048,111150.0,111140.0,0.08356]
[1756871563884,0.28661048,111150.0,111140.0,0.08256]
[1756871566090,0.02429155,111150.0,111140.0,0.08256]
[1756871566388,0.28661048,111150.0,111140.0,0.08256]
[1756871569489,0.3742131,111150.0,111140.0,0.08256]
[1756871576292,0.02429155,111150.0,111140.0,0.08256]
[1756871576492,0.3742131,111150.0,111140.0,0.08256]
[1756871578489,0.02429155,111150.0,111140.0,0.08256]
[1756871578791,0.35002155,111150.0,111140.0,0.08256]
[1756871579091,0.02429155,111150.0,111140.0,0.08256]
[1756871579291,0.35002155,111150.0,111140.0,0.08256]
[1756871579488,0.3742131,111150.0,111140.0,0.08256]
[1756871581393,0.0001,111150.0,111140.0,1.50316155]
[1756871581688,0.0001,111160.0,111140.0,1.90313095]
[1756871581887,0.0004,111190.0,111180.0,0.04871]
[1756871582087,0.25475474,111190.0,111180.0,0.08256]
[1756871583897,0.60467629,111190.0,111180.0,0.08256]
[1756871584088,0.58032155,111190.0,111180.0,0.08256]
[1756871584686,0.58332155,111190.0,111180.0,0.08256]
[1756871585189,0.58532155,111190.0,111180.0,0.08256]
[1756871585593,0.2354,111190.0,111180.0,0.08256]
[1756871586393,0.0054,111190.0,111180.0,0.08256]
[1756871586995,0.35532155,111190.0,111180.0,0.15566643]
[1756871587190,0.0054,111190.0,111180.0,0.15566643]
[1756871590198,0.35532155,111190.0,111180.0,0.15566643]
[1756871590798,0.0054,111190.0,111180.0,0.15566643]
[1756871592997,0.35532155,111190.0,111180.0,0.15566643]
[1756871593802,0.0054,111190.0,111180.0,0.15566643]
[1756871594002,0.005,111190.0,111180.0,0.15566643]
[1756871594503,0.00515,111190.0,111180.0,0.15566643]
[1756871594703,0.0053,111190.0,111180.0,0.15566643]
[1756871595200,0.0054,111190.0,111180.0,0.15566643]
[1756871596503,0.005,111190.0,111180.0,0.15566643]
[1756871597298,0.0053,111190.0,111180.0,0.15566643]
[1756871597503,0.0054,111190.0,111180.0,0.15566643]
[1756871599215,0.35532155,111190.0,111180.0,0.15566643]
[1756871602018,0.0054,111190.0,111180.0,0.15566643]
[1756871602219,0.02976421,111190.0,111180.0,0.15566643]
[1756871603221,0.37968576,111190.0,111180.0,0.15566643]
[1756871606118,0.62968576,111190.0,111180.0,0.08256]
[1756871606323,0.62968576,111190.0,111180.0,0.04871]
[1756871606519,0.62968576,111190.0,111170.0,0.03597]
[1756871606716,0.35032155,111180.0,111170.0,0.08173]
[1756871606915,0.37468576,111180.0,111170.0,0.08163]
[1756871609023,0.37668576,111180.0,111170.0,0.08163]
[1756871610026,0.37868576,111180.0,111170.0,0.08163]
[1756871619724,0.37868576,111180.0,111170.0,0.04576]
[1756871620333,0.37868576,111180.0,111170.0,0.0809]
[1756871620928,0.37868576,111180.0,111170.0,0.04576]
[1756871621636,0.37868576,111180.0,111170.0,0.0809]
[1756871622537,0.37868576,111180.0,111170.0,0.04576]
[1756871622839,0.37868576,111180.0,111170.0,0.0809]
[1756871623337,0.37868576,111180.0,111170.0,0.04576]
[1756871623639,0.37868576,111180.0,111170.0,0.0809]
[1756871625830,0.37868576,111180.0,111170.0,0.04576]
[1756871627037,0.37868576,111180.0,111170.0,0.0809]
[1756871629143,0.02876421,111180.0,111170.0,0.0809]
[1756871629331,0.37868576,111180.0,111170.0,0.0809]
[1756871629537,0.55337769,111180.0,111170.0,0.0809]
[1756871632440,0.02876421,111180.0,111170.0,0.0809]
[1756871632643,0.55337769,111180.0,111170.0,0.0809]
[1756871642647,0.02876421,111180.0,111170.0,0.0809]
[1756871643045,0.55337769,111180.0,111170.0,0.0809]
[1756871647157,0.02876421,111180.0,111170.0,0.0809]
[1756871647356,0.55337769,111180.0,111170.0,0.0809]
[1756871648246,0.02876421,111180.0,111170.0,0.0809]
[1756871648446,0.55337769,111180.0,111170.0,0.0809]
[1756871648850,0.02876421,111180.0,111170.0,0.0809]
[1756871649058,0.55337769,111180.0,111170.0,0.0809]
[1756871654162,0.02876421,111180.0,111170.0,0.0809]
[1756871654354,0.55337769,111180.0,111170.0,0.0809]
[1756871656765,0.55337769,111180.0,111170.0,0.08321]
[1756871657264,0.02876421,111180.0,111170.0,0.08321]
[1756871657463,0.55337769,111180.0,111170.0,0.08321]
[1756871657666,0.55337769,111180.0,111170.0,0.09321]
[1756871658163,0.02876421,111180.0,111170.0,0.09321]
[1756871658366,0.55337769,111180.0,111170.0,0.09321]
[1756871661668,0.55337769,111180.0,111170.0,0.05576]
[1756871662060,0.55337769,111180.0,111170.0,0.09321]
[1756871664771,0.02876421,111180.0,111170.0,0.09321]
[1756871664974,0.55337769,111180.0,111170.0,0.09321]
[1756871665269,0.55337769,111180.0,111170.0,0.05576]
[1756871665470,0.55337769,111180.0,111170.0,0.05732]
[1756871670672,0.55337769,111180.0,111170.0,0.03291]
[1756871671372,0.55337769,111180.0,111170.0,0.05705]
[1756871671976,0.55337769,111180.0,111170.0,0.0945]
[1756871675874,0.55337769,111180.0,111170.0,0.05705]
[1756871677673,0.55337769,111180.0,111170.0,0.0945]
[1756871677973,0.55337769,111180.0,111170.0,0.01]
[1756871681975,0.55337769,111180.0,111170.0,0.0338]
[1756871682278,1.37369769,111180.0,111170.0,0.0936]
[1756871682873,1.37369769,111180.0,111170.0,0.05772]
[1756871685176,1.37369769,111180.0,111170.0,0.0338]
[1756871685977,1.37369769,111180.0,111170.0,0.01]
[1756871689784,1.37369769,111180.0,111170.0,0.0338]
[1756871690082,1.37369769,111180.0,111170.0,0.05772]
[1756871691579,1.19886927,111180.0,111170.0,0.05772]
[1756871698393,0.37854927,111180.0,111170.0,0.05772]
[1756871698687,1.19878927,111180.0,111170.0,0.05772]
[1756871699790,1.19878927,111180.0,111170.0,0.0936]
[1756871700693,1.19878927,111180.0,111170.0,0.05772]
[1756871708297,1.19878927,111180.0,111170.0,0.01]
[1756871709699,1.80878927,111180.0,111170.0,0.01]
[1756871709896,1.80878927,111180.0,111160.0,0.0001]
[1756871710096,0.34978506,111170.0,111160.0,0.0901]
[1756871710295,0.37414927,111170.0,111160.0,0.09]
[1756871711994,0.70414927,111170.0,111160.0,0.09]
[1756871712203,1.05393433,111170.0,111150.0,0.01444]
[1756871712394,1.51973012,111160.0,111150.0,0.01444]
[1756871712596,1.54409433,111160.0,111150.0,0.01434]
[1756871712796,1.54409433,111160.0,111140.0,0.08233]
[1756871712991,0.34978506,111150.0,111140.0,0.29758]
[1756871713197,1.19430927,111150.0,111140.0,0.33223]
[1756871714402,1.19530927,111150.0,111140.0,0.33223]
[1756871715108,0.37514927,111150.0,111140.0,0.35060672]
[1756871717409,0.44582865,111150.0,111140.0,0.35060672]
[1756871717604,0.42156444,111150.0,111140.0,0.35060672]
[1756871717910,0.44577878,111150.0,111140.0,0.35060672]
[1756871718915,0.44577878,111150.0,111140.0,0.26837672]
[1756871719209,0.44577878,111150.0,111140.0,0.25]
[1756871719409,0.44577878,111150.0,111140.0,0.06]
[1756871719710,0.44577878,111150.0,111140.0,0.08342]
[1756871720912,0.44577878,111150.0,111140.0,0.10748]
[1756871721607,0.42156444,111150.0,111140.0,0.10748]
[1756871722715,0.44576122,111150.0,111140.0,0.06]
[1756871723009,0.44576122,111150.0,111140.0,0.08342]
[1756871723205,0.44576122,111150.0,111140.0,0.10748]
[1756871725307,0.44576122,111150.0,111140.0,0.06]
[1756871725707,0.44576122,111150.0,111140.0,0.08342]
[1756871726108,0.42156444,111150.0,111140.0,0.08342]
[1756871726313,0.4457521,111150.0,111140.0,0.08342]
[1756871726505,0.8057521,111150.0,111130.0,0.03485]
[1756871726728,1.16998506,111140.0,111130.0,0.26758]
[1756871727010,1.17008506,111140.0,111130.0,0.26748]
[1756871727212,1.17008506,111140.0,111120.0,0.05313811]
[1756871727213,0.37406628,111140.0,111120.0,0.10061811]
[1756871727409,0.34978506,111130.0,111120.0,0.10061811]
[1756871727609,0.34988506,111130.0,111120.0,0.17051811]
[1756871727814,0.34888506,111130.0,111120.0,0.17051811]
[1756871728709,0.35771682,111130.0,111120.0,0.17051811]
[1756871729708,0.35771682,111130.0,111120.0,0.17351811]
[1756871730309,0.35871682,111130.0,111120.0,0.17151811]
[1756871731018,0.35871682,111130.0,111120.0,0.15323]
[1756871732214,0.35971682,111130.0,111120.0,0.15223]
[1756871733609,0.35971682,111130.0,111120.0,0.11748]
[1756871733809,0.38385484,111130.0,111120.0,0.02342]
[1756871734119,0.63385484,111130.0,111110.0,0.10083604]
[1756871734313,0.34978506,111120.0,111110.0,0.44083604]
[1756871734515,0.34988506,111120.0,111110.0,0.44073604]
[1756871734813,0.34988506,111120.0,111110.0,0.17073604]
[1756871735409,0.34988506,111120.0,111110.0,0.15223]
[1756871735812,0.37401933,111120.0,111110.0,0.15223]
[1756871736510,1.19421933,111120.0,111110.0,0.15223]
[1756871736711,0.37401933,111120.0,111110.0,0.15223]
[1756871737225,0.37501933,111120.0,111110.0,0.15223]
[1756871738418,0.37601933,111120.0,111110.0,0.15223]
[1756871747312,0.02623427,111120.0,111110.0,0.15223]
[1756871747513,0.37601933,111120.0,111110.0,0.15223]
[1756871751428,0.55141065,111120.0,111110.0,0.15223]
[1756871756325,0.02623427,111120.0,111110.0,0.66481819]
[1756871756631,0.0021,111120.0,111110.0,1.01740038]
[1756871756836,0.0021,111120.0,111110.0,2.07756038]
[1756871757721,0.0011,111120.0,111110.0,2.09914426]
[1756871758728,0.0001,111120.0,111110.0,2.10114426]
[1756871759231,0.0001,111120.0,111110.0,1.85114426]
[1756871761630,0.0001,111120.0,111110.0,1.76103026]
[1756871762135,0.0001,111120.0,111110.0,1.58843617]
[1756871762336,0.0001,111120.0,111110.0,1.85102436]
[1756871766636,0.0001,111120.0,111110.0,2.10102436]
[1756871770428,0.0001,111120.0,111110.0,1.28098456]
[1756871770633,0.0001,111120.0,111110.0,2.10086456]
[1756871772136,0.0001,111120.0,111110.0,2.36462456]
[1756871772336,0.0001,111120.0,111110.0,1.54478456]
[1756871772537,0.0001,111120.0,111110.0,2.36462456]
[1756871775736,0.0001,111120.0,111110.0,1.45479026]
[1756871776046,0.0001,111120.0,111110.0,1.76200207]
[1756871776340,0.0001,111120.0,111110.0,2.02459026]
[1756871777341,0.0001,111120.0,111110.0,2.11458446]
[1756871777743,0.0001,111120.0,111110.0,1.58940808]
[1756871777930,0.0001,111120.0,111110.0,2.11458446]
[1756871784048,0.0001,111120.0,111110.0,1.76188207]
[1756871786341,0.0001,111120.0,111110.0,2.02447026]
[1756871789851,0.0001,111120.0,111110.0,2.11446446]
[1756871790955,0.0001,111120.0,111110.0,2.02447026]
[1756871792656,0.0001,111120.0,111110.0,1.20479026]
[1756871792952,0.0001,111120.0,111110.0,2.02439026]
[1756871794458,0.0001,111120.0,111110.0,1.20479026]
[1756871794656,0.0001,111120.0,111110.0,2.02435026]
[1756871799761,0.0001,111120.0,111110.0,1.20479026]
[1756871799959,0.0001,111120.0,111110.0,2.02431026]
[1756871800760,0.0001,111120.0,111110.0,1.20479026]
[1756871800963,0.26268819,111120.0,111110.0,0.67961388]
[1756871801260,0.26268819,111120.0,111110.0,0.94220207]
[1756871801458,0.51268819,111120.0,111110.0,1.76172207]
[1756871801762,0.51268819,111120.0,111110.0,1.49792207]
[1756871802349,0.51268819,111120.0,111110.0,1.49592207]
[1756871802551,0.51268819,111120.0,111110.0,1.49792207]
[1756871802959,0.51268819,111120.0,111110.0,1.49492207]
[1756871803157,0.51268819,111120.0,111110.0,1.49692207]
[1756871803464,0.2501,111120.0,111110.0,1.49592207]
[1756871809878,0.0001,111120.0,111110.0,1.75851026]
[1756871810275,0.0001,111120.0,111110.0,1.49592207]
[1756871810575,0.0001,111120.0,111110.0,1.75851026]
[1756871812680,0.0001,111120.0,111110.0,2.00851026]
[1756871813483,0.0001,111120.0,111110.0,1.83324342]
[1756871813681,0.0001,111120.0,111110.0,2.09704342]
[1756871819283,0.0001,111120.0,111110.0,1.84704342]
[1756871821882,0.0001,111120.0,111110.0,1.02752342]
[1756871822186,0.0001,111120.0,111110.0,0.67761388]
[1756871822382,0.0001,111120.0,111110.0,1.02752342]
[1756871822585,0.0001,111120.0,111110.0,1.49693388]
[1756871823187,0.0001,111120.0,111110.0,1.84684342]
[1756871825679,0.0001,111120.0,111110.0,1.58304342]
[1756871827887,0.0001,111120.0,111110.0,1.23313388]
[1756871828088,0.0001,111120.0,111110.0,1.58304342]
[1756871835590,0.0001,111120.0,111110.0,1.58292342]
[1756871842590,0.0001,111120.0,111110.0,1.23301388]
[1756871842892,0.0001,111120.0,111110.0,1.58284342]
[1756871844494,0.0001,111120.0,111110.0,0.76372342]
[1756871844694,0.0001,111120.0,111110.0,1.58284342]
[1756871845393,0.0001,111120.0,111110.0,0.76372342]
[1756871845594,0.0001,111120.0,111110.0,1.58280342]
[1756871848393,0.2501,111120.0,111110.0,0.76372342]
[1756871848697,0.2501,111120.0,111110.0,1.23289388]
[1756871850394,0.2501,111120.0,111110.0,1.58280342]
[1756871850898,0.0001,111120.0,111110.0,1.58280342]
[1756871857502,0.0001,111120.0,111110.0,1.23289388]
[1756871857708,0.0001,111120.0,111110.0,1.58280342]
[1756871860101,0.0001,111120.0,111110.0,1.58268342]
[1756871863315,0.35000954,111120.0,111110.0,0.41381388]
[1756871863520,0.60000954,111120.0,111110.0,0.92277388]
[1756871863813,0.67444822,111120.0,111110.0,0.05048]
[1756871864018,0.67444822,111120.0,111110.0,0.08535]
[1756871865525,0.68355952,111120.0,111110.0,0.08535]
[1756871866021,0.68455952,111120.0,111110.0,0.08335]
[1756871866221,0.66012084,111120.0,111110.0,0.08335]
[1756871867025,0.66112084,111120.0,111110.0,0.08235]
[1756871868311,0.68553683,111120.0,111110.0,0.08235]
[1756871868710,0.33562729,111120.0,111110.0,0.08235]
[1756871868919,0.67642553,111120.0,111110.0,0.08235]
[1756871871529,0.65200954,111120.0,111110.0,0.08235]
[1756871871827,0.66114388,111120.0,111110.0,0.08235]
[1756871872627,0.66114388,111120.0,111110.0,0.04748]
[1756871873029,0.66114388,111120.0,111110.0,0.08235]
[1756871873432,0.83646134,111120.0,111110.0,0.08235]
[1756871877734,0.86087169,111120.0,111110.0,0.04748]
[1756871879332,0.61087169,111120.0,111110.0,0.04748]
[1756871883337,2.24244519,111120.0,111100.0,0.03698]
[1756871883532,0.525227,111110.0,111100.0,0.34401]
[1756871883733,0.54963666,111110.0,111100.0,0.01391]
[1756871884139,0.86963666,111110.0,111100.0,0.01391]
[1756871885029,0.86963666,111110.0,111100.0,0.03688]
[1756871886837,0.87063666,111110.0,111100.0,0.03688]
[1756871887235,0.87163666,111110.0,111100.0,0.03688]
[1756871894732,0.87163666,111110.0,111100.0,0.05998]
[1756871894933,1.69055666,111110.0,111100.0,0.05998]
[1756871895226,0.87163666,111110.0,111100.0,0.05998]
[1756871895439,1.69055666,111110.0,111100.0,0.09485]
[1756871899743,1.69055666,111110.0,111100.0,0.05998]
[1756871902641,1.69055666,111110.0,111100.0,0.03688]
[1756871902947,1.16532966,111110.0,111100.0,0.09619]
[1756871903148,1.69055666,111110.0,111100.0,0.06132]
[1756871905946,1.69051666,111110.0,111100.0,0.06132]
[1756871906351,0.87163666,111110.0,111100.0,0.06132]
[1756871906651,1.69051666,111110.0,111100.0,0.06132]
[1756871907652,0.87163666,111110.0,111100.0,0.06132]
[1756871907953,1.69051666,111110.0,111100.0,0.09619]
[1756871909846,0.87163666,111110.0,111100.0,0.09619]
[1756871910051,1.42786316,111110.0,111100.0,0.09619]
[1756871915653,0.34640966,111110.0,111100.0,0.871417]
[1756871915951,0.60902316,111110.0,111100.0,0.6088035]
[1756871916147,0.34640966,111110.0,111100.0,0.871417]
[1756871916352,0.322,111110.0,111100.0,0.871417]
[1756871916553,0.322,111110.0,111100.0,0.6088035]
[1756871916853,0.5846135,111110.0,111100.0,0.6088035]
[1756871917459,0.5836135,111110.0,111100.0,0.6088035]
[1756871917660,0.5826135,111110.0,111100.0,0.6088035]
[1756871918253,0.5826135,111110.0,111100.0,0.6108035]
[1756871919062,0.32,111110.0,111100.0,0.6108035]
[1756871919361,0.5826135,111110.0,111100.0,0.6108035]
[1756871919663,0.32,111110.0,111100.0,0.6108035]
[1756871919866,0.5826135,111110.0,111100.0,0.6118035]
[1756871920664,0.5826135,111110.0,111100.0,0.6108035]
[1756871920867,0.5826135,111110.0,111100.0,0.6088035]
[1756871931579,0.32,111110.0,111100.0,0.6088035]
[1756871931778,0.5826135,111110.0,111100.0,0.6088035]
[1756871932381,0.5826135,111110.0,111100.0,0.871417]
[1756871932775,0.5826135,111110.0,111100.0,0.6088035]
[1756871934285,0.5826135,111110.0,111100.0,0.34619]
[1756871934481,0.5826135,111110.0,111100.0,0.6088035]
[1756871934786,0.32,111110.0,111100.0,0.34619]
[1756871935182,0.32,111110.0,111100.0,0.6088035]
[1756871935384,0.5826135,111110.0,111100.0,0.6088035]
[1756871935685,0.32,111110.0,111100.0,0.34619]
[1756871937990,0.6701003,111110.0,111100.0,0.01391]
[1756871938185,0.69451464,111110.0,111100.0,0.01391]
[1756871938687,1.41517434,111110.0,111090.0,0.08689]
[1756871938894,1.41517434,111110.0,111090.0,0.40689]
[1756871939076,0.3501003,111100.0,111090.0,0.36944]
[1756871939281,0.71451464,111100.0,111090.0,0.36934]
[1756871940481,0.71551464,111100.0,111090.0,0.36934]
[1756871940885,0.71551464,111100.0,111090.0,0.40679]
[1756871941590,0.71651464,111100.0,111090.0,0.40679]
[1756871942290,0.71651464,111100.0,111090.0,0.36934]
[1756871943185,0.71651464,111100.0,111090.0,0.40679]
[1756871943587,0.36641434,111100.0,111090.0,0.40679]
[1756871943788,0.71651464,111100.0,111090.0,0.40679]
[1756871944787,0.36641434,111100.0,111090.0,0.40679]
[1756871944983,0.36641434,111100.0,111090.0,0.7568903]
[1756871945291,0.342,111100.0,111090.0,1.0068903]
[1756871946785,0.002,111100.0,111090.0,1.0068903]
[1756871946986,0.001,111100.0,111090.0,1.0068903]
[1756871947181,0.3501003,111110.0,111100.0,0.05196]
[1756871947393,0.74450975,111110.0,111100.0,0.1013]
[1756871948696,0.74550975,111110.0,111100.0,0.1013]
[1756871948993,0.74650975,111110.0,111100.0,0.1013]
[1756871949495,0.74650975,111110.0,111090.0,0.03652]
[1756871949688,0.74650975,111110.0,111090.0,0.40485]
[1756871949888,0.74650975,111110.0,111100.0,0.09953]
[1756871950697,0.74550975,111110.0,111100.0,0.09953]
[1756871951101,0.74550975,111110.0,111100.0,0.06311]
[1756871951693,0.74550975,111110.0,111100.0,0.09953]
[1756871951901,0.74450975,111110.0,111100.0,0.09953]
[1756871952100,0.74550975,111110.0,111100.0,0.09953]
[1756871952900,0.74650975,111110.0,111100.0,0.09953]
[1756871954698,0.39640945,111110.0,111100.0,0.46771212]
[1756871954995,0.372,111110.0,111100.0,0.46771212]
[1756871955595,0.172,111110.0,111100.0,0.46771212]
[1756871956303,0.171,111110.0,111100.0,0.46771212]
[1756871956904,0.17,111110.0,111100.0,0.46771212]
[1756871958901,0.17,111110.0,111100.0,0.4496303]
[1756871973017,0.17,111110.0,111100.0,0.4506303]
[1756871973613,0.17,111110.0,111100.0,0.4526303]
[1756871974209,0.17,111110.0,111100.0,1.2722703]
[1756871974613,0.17,111110.0,111100.0,0.92217]
[1756871974914,0.17,111110.0,111100.0,1.2722703]
[1756871976704,0.17,111110.0,111100.0,0.4526303]
[1756871976909,0.5201003,111110.0,111100.0,0.10253]
[1756871978021,0.5201003,111110.0,111100.0,0.10053]
[1756871979319,0.5201003,111110.0,111100.0,0.09953]
[1756871982020,0.54451683,111110.0,111100.0,0.09953]
[1756871991513,0.5201003,111110.0,111100.0,0.09953]
[1756871993228,0.79452682,111110.0,111100.0,0.01478]
[1756871993834,0.79452682,111110.0,111090.0,0.04795]
[1756871994131,0.3501003,111100.0,111090.0,0.40795]
[1756871994331,0.3501003,111100.0,111090.0,0.40785]
[1756871994522,0.3501003,111100.0,111090.0,0.44424]
[1756871997530,0.26265556,111100.0,111090.0,0.70689556]
[1756871998320,0.26265556,111100.0,111090.0,0.44424]
[1756871999235,0.26265556,111100.0,111090.0,0.70689556]
[1756872000221,0.26265556,111100.0,111090.0,0.44424]
[1756872000425,0.52531112,111100.0,111090.0,0.44424]
[1756872000825,0.78436161,111100.0,111090.0,0.44424]
[1756872001125,0.80875324,111100.0,111090.0,0.44424]
[1756872001321,0.78436161,111100.0,111090.0,0.44424]
[1756872001928,0.7996991,111100.0,111090.0,0.44424]
[1756872002124,0.77531112,111100.0,111090.0,0.44424]
[1756872002528,0.79969655,111100.0,111090.0,0.44424]
[1756872003232,0.79969445,111100.0,111090.0,0.44424]
[1756872003434,0.77531112,111100.0,111090.0,0.44424]
[1756872003830,0.79969444,111100.0,111090.0,0.44424]
[1756872005136,0.78440582,111100.0,111090.0,0.44424]
[1756872005334,0.80878725,111100.0,111090.0,0.44424]
[1756872006239,0.80878345,111100.0,111090.0,0.44424]
[1756872009141,0.80878345,111100.0,111090.0,0.08424]
[1756872010341,0.80878345,111100.0,111080.0,0.08189]
[1756872010542,0.26265556,111090.0,111080.0,0.42189]
[1756872010844,0.26265556,111090.0,111080.0,0.42179]
[1756872011329,0.26265556,111090.0,111080.0,0.68444556]
[1756872011535,0.66704,111110.0,111100.0,0.06318]
[1756872011735,1.21671953,111110.0,111100.0,0.09718]